bitfinex/quotes_BTCUSD_20230114
["timestamp","ask_amount","ask_price","bid_price","bid_amount"]
[1673704555818,0.24589006,20905.0,20904.0,0.3]
[1673704556061,0.24579976,20905.0,20904.0,0.3]
[1673704556779,0.23679976,20905.0,20904.0,0.3]
[1673704557017,0.24579976,20905.0,20904.0,0.31]
[1673704557520,0.24579976,20905.0,20904.0,0.01]
[1673704561750,0.24579976,20905.0,20904.0,0.009752]
[1673704564502,0.27616358,20905.0,20904.0,0.009752]
[1673704565736,0.47002731,20905.0,20904.0,0.009752]
[1673704565972,0.27616358,20905.0,20904.0,0.009752]
[1673704567190,0.27616358,20905.0,20904.0,0.004752]
[1673704569150,0.38699737,20905.0,20904.0,0.004752]
[1673704571343,0.37799737,20905.0,20904.0,0.004752]
[1673704571589,0.3487813,20905.0,20904.0,0.004752]
[1673704574008,0.3487813,20905.0,20904.0,0.15166403]
[1673704574239,0.3487813,20905.0,20904.0,0.004752]
[1673704575001,0.31268737,20905.0,20904.0,0.004752]
[1673704580890,0.31268737,20905.0,20904.0,0.1475143]
[1673704581388,1.64099766,20907.0,20904.0,1.01053058]
[1673704581633,1.64099766,20907.0,20904.0,1.42583558]
[1673704581873,1.64099766,20907.0,20905.0,0.44301419]
[1673704582112,0.26499766,20907.0,20905.0,0.92136619]
[1673704582841,0.26499766,20907.0,20905.0,1.13550965]
[1673704583083,0.27099766,20907.0,20906.0,0.14301419]
[1673704583323,0.26499766,20907.0,20905.0,1.13550965]
[1673704583566,0.27256292,20906.0,20905.0,1.14650965]
[1673704583815,0.27256292,20906.0,20905.0,1.18181484]
[1673704584054,1.2012937,20909.0,20905.0,1.18181484]
[1673704584055,0.2482829,20909.0,20906.0,0.011]
[1673704584293,2.88784829,20910.0,20906.0,1.15493912]
[1673704584294,0.006,20907.0,20906.0,1.15493912]
[1673704584549,0.006,20907.0,20906.0,1.32515873]
[1673704584781,0.30467836,20908.0,20906.0,1.64615173]
[1673704585026,0.30467836,20908.0,20907.0,0.64947634]
[1673704585268,0.30467836,20908.0,20907.0,0.92127834]
[1673704585747,2.88784829,20910.0,20907.0,0.92127834]
[1673704585997,0.30250329,20909.0,20908.0,0.19001653]
[1673704586232,0.30850329,20909.0,20908.0,0.66830153]
[1673704586484,0.30250329,20909.0,20908.0,0.96830153]
[1673704587233,0.006,20909.0,20908.0,1.11008192]
[1673704587475,1.51124829,20910.0,20909.0,0.02425032]
[1673704587729,1.51124829,20910.0,20909.0,2.33444627]
[1673704587977,1.51124829,20910.0,20909.0,2.33442736]
[1673704588220,1.51124829,20910.0,20909.0,2.04890304]
[1673704588471,1.51124829,20910.0,20909.0,2.09759635]
[1673704588716,1.51124829,20910.0,20909.0,2.21219635]
[1673704588977,1.51124829,20910.0,20909.0,1.85526247]
[1673704589215,1.51124829,20910.0,20909.0,2.82070429]
[1673704589455,1.51124829,20910.0,20909.0,2.28136295]
[1673704589698,1.51124829,20910.0,20909.0,2.44182849]
[1673704589936,1.51124829,20910.0,20909.0,2.63673855]
[1673704590181,1.51124829,20910.0,20909.0,2.80065777]
[1673704590460,1.51124829,20910.0,20909.0,2.65347253]
[1673704590712,1.51124829,20910.0,20909.0,2.51447253]
[1673704590961,1.51124829,20910.0,20909.0,2.83849691]
[1673704591483,1.51124829,20910.0,20909.0,1.84981917]
[1673704591729,1.51124829,20910.0,20909.0,1.99225106]
[1673704591968,1.51124829,20910.0,20909.0,1.93369801]
[1673704592246,1.51124829,20910.0,20909.0,1.79126612]
[1673704592488,1.51124829,20910.0,20909.0,1.79018114]
[1673704593465,1.51124829,20910.0,20909.0,1.78909616]
[1673704593713,1.51124829,20910.0,20909.0,1.95009616]
[1673704593976,1.51224829,20910.0,20909.0,2.09009616]
[1673704594223,1.51124829,20910.0,20909.0,2.09252805]
[1673704594468,1.51224829,20910.0,20909.0,2.09001118]
[1673704594714,1.51224829,20910.0,20909.0,2.18374976]
[1673704595204,1.51224829,20910.0,20909.0,2.04131787]
[1673704595454,1.51224829,20910.0,20909.0,2.01242013]
[1673704595711,1.51224829,20910.0,20909.0,1.34259422]
[1673704595966,1.76410504,20910.0,20909.0,1.34259422]
[1673704596466,1.76410504,20910.0,20909.0,1.29207515]
[1673704596974,1.76410504,20910.0,20909.0,1.097524]
[1673704597482,1.51224829,20910.0,20909.0,0.61743624]
[1673704597727,1.51224829,20910.0,20909.0,0.141]
[1673704598482,1.51224829,20910.0,20909.0,0.13917426]
[1673704599468,1.75523365,20910.0,20909.0,0.13734852]
[1673704599712,1.51224829,20910.0,20909.0,0.13734852]
[1673704599954,1.75935056,20910.0,20908.0,0.77828]
[1673704600199,1.79668236,20910.0,20908.0,0.77828]
[1673704600446,1.79668236,20910.0,20908.0,0.9517714]
[1673704600447,1.51124829,20910.0,20908.0,0.9517714]
[1673704600691,1.53324829,20910.0,20909.0,0.00891591]
[1673704600927,1.51124829,20910.0,20908.0,0.9517714]
[1673704601171,1.79727448,20910.0,20908.0,0.6597714]
[1673704601669,1.79727448,20910.0,20909.0,0.07399409]
[1673704601925,1.77327448,20910.0,20909.0,0.07399409]
[1673704602158,1.77327448,20910.0,20908.0,0.47828]
[1673704602393,0.06531,20909.0,20908.0,0.47828]
[1673704602652,0.16531,20909.0,20907.0,0.478308]
[1673704602914,0.16531,20909.0,20908.0,0.008]
[1673704603151,0.06531,20909.0,20906.0,0.478326]
[1673704603397,0.28003595,20909.0,20908.0,0.008]
[1673704603671,0.28003595,20909.0,20906.0,0.478326]
[1673704603672,0.08931,20909.0,20906.0,0.478326]
[1673704603918,0.18931,20909.0,20906.0,0.478326]
[1673704604161,1.02414177,20909.0,20907.0,0.002]
[1673704604396,1.02414177,20909.0,20902.0,0.478409]
[1673704604397,0.71071269,20908.0,20902.0,0.478409]
[1673704604646,0.71071269,20908.0,20906.0,0.013]
[1673704604647,0.30482595,20907.0,20906.0,0.013]
[1673704604942,0.133011,20907.0,20906.0,0.013]
[1673704605172,0.233011,20907.0,20906.0,0.013]
[1673704606140,0.233011,20907.0,20902.0,0.478409]
[1673704606372,0.29072595,20906.0,20902.0,0.478409]
[1673704606671,0.018911,20905.0,20902.0,0.478409]
[1673704606908,0.19072595,20905.0,20902.0,0.478409]
[1673704607148,0.1,20906.0,20902.0,0.478409]
[1673704607390,0.29072595,20906.0,20902.0,0.480409]
[1673704607657,0.29072595,20906.0,20902.0,0.478409]
[1673704607912,0.028,20905.0,20902.0,0.002]
[1673704608138,0.028,20905.0,20902.0,0.302]
[1673704608871,0.29072595,20906.0,20902.0,0.3]
[1673704609135,0.128,20906.0,20902.0,0.43178039]
[1673704609388,0.128,20906.0,20902.0,0.42978039]
[1673704609639,0.1,20906.0,20902.0,0.42978039]
[1673704610156,0.128,20906.0,20902.0,0.302]
[1673704610399,0.028,20906.0,20902.0,0.43178039]
[1673704610640,0.24431126,20905.0,20902.0,0.302]
[1673704611630,0.24431126,20905.0,20902.0,0.78041]
[1673704611866,0.24431126,20905.0,20902.0,0.77841]
[1673704612114,0.028,20905.0,20903.0,0.28837496]
[1673704612366,0.028,20905.0,20904.0,1.577567]
[1673704613112,0.028,20905.0,20904.0,1.88245367]
[1673704613355,0.27948663,20908.0,20904.0,1.88245367]
[1673704613619,1.4338,20909.0,20905.0,0.32465139]
[1673704613874,1.82873797,20910.0,20906.0,2.18553839]
[1673704614121,1.82873797,20910.0,20907.0,0.32462939]
[1673704614373,1.82873797,20910.0,20908.0,0.95657]
[1673704614614,1.82873797,20910.0,20909.0,0.3]
[1673704614875,1.82873797,20910.0,20909.0,0.778262]
[1673704615393,1.82873797,20910.0,20909.0,1.01461956]
[1673704615394,1.5,20910.0,20909.0,1.01461956]
[1673704615656,1.574,20910.0,20909.0,1.54255152]
[1673704615894,1.5,20910.0,20909.0,1.53255152]
[1673704616143,1.5,20910.0,20909.0,1.57655152]
[1673704616144,1.503,20910.0,20909.0,1.57655152]
[1673704616395,1.5,20910.0,20909.0,1.53255152]
[1673704616651,1.506,20910.0,20909.0,1.64255152]
[1673704616898,1.5,20910.0,20909.0,1.53255152]
[1673704617384,1.5,20910.0,20909.0,1.33543256]
[1673704618372,1.506,20910.0,20909.0,1.33543256]
[1673704619602,1.512,20910.0,20909.0,1.44543256]
[1673704619851,1.5,20910.0,20909.0,1.33543256]
[1673704620117,1.506,20910.0,20909.0,1.44543256]
[1673704620393,1.506,20910.0,20909.0,1.14543256]
[1673704621396,1.5,20910.0,20909.0,1.03543256]
[1673704621646,1.35540001,20910.0,20909.0,1.58786445]
[1673704622916,1.34540001,20910.0,20909.0,1.58786445]
[1673704623158,1.34540001,20910.0,20909.0,1.90165336]
[1673704623412,1.34540001,20910.0,20909.0,1.64372009]
[1673704623704,1.12423178,20910.0,20909.0,2.048789]
[1673704623926,1.12423178,20910.0,20909.0,1.76376462]
[1673704624188,1.12423178,20910.0,20909.0,1.86376462]
[1673704624429,1.12423178,20910.0,20909.0,2.14824565]
[1673704626446,0.04802178,20910.0,20909.0,1.86376462]
[1673704626945,0.04802178,20910.0,20909.0,2.14815484]
[1673704627572,0.04802178,20910.0,20909.0,1.80027924]
[1673704627838,0.04802178,20910.0,20909.0,2.15665484]
[1673704628879,0.04802178,20910.0,20909.0,1.87226462]
[1673704630109,0.01215055,20912.0,20911.0,0.1]
[1673704630353,0.01215055,20912.0,20911.0,2.28614409]
[1673704630823,0.01215055,20912.0,20911.0,2.55451294]
[1673704631304,0.01215055,20912.0,20911.0,2.21108867]
[1673704631535,0.01215055,20912.0,20911.0,2.03674185]
[1673704631771,0.01215055,20912.0,20911.0,1.89774185]
[1673704632004,0.01215055,20912.0,20911.0,2.03674185]
[1673704632236,0.01215055,20912.0,20911.0,1.89774185]
[1673704632487,0.01215055,20912.0,20911.0,2.03674185]
[1673704632694,0.01215055,20912.0,20911.0,2.33674185]
[1673704633436,0.01215055,20912.0,20911.0,2.19774185]
[1673704633666,0.01215055,20912.0,20911.0,2.33874185]
[1673704633916,0.01215055,20912.0,20911.0,2.19774185]
[1673704634163,0.01215055,20912.0,20911.0,2.33774185]
[1673704636816,0.01215055,20912.0,20911.0,2.38502728]
[1673704637301,0.01215055,20912.0,20911.0,2.38486079]
[1673704637773,0.01215055,20912.0,20911.0,1.29098951]
[1673704637774,0.07246055,20912.0,20911.0,1.29098951]
[1673704638001,0.40493451,20912.0,20911.0,1.09626751]
[1673704638464,0.40493451,20912.0,20911.0,1.09610106]
[1673704638699,0.33962451,20912.0,20911.0,1.280168]
[1673704638925,0.33962451,20912.0,20911.0,1.600981]
[1673704639172,0.32226916,20914.0,20911.0,1.600981]
[1673704639413,0.32226916,20914.0,20912.0,0.55792906]
[1673704639667,0.32226916,20914.0,20913.0,0.478171]
[1673704639906,0.32226916,20914.0,20913.0,0.778171]
[1673704640372,0.32226916,20914.0,20913.0,0.77800456]
[1673704640868,0.32226916,20914.0,20913.0,0.78400456]
[1673704641116,0.32226916,20914.0,20913.0,0.9680715]
[1673704641584,0.32226916,20914.0,20913.0,0.96790503]
[1673704642567,0.32226916,20914.0,20913.0,0.96773859]
[1673704643511,0.32226916,20914.0,20913.0,0.306]
[1673704644709,0.32226916,20914.0,20913.0,0.006]
[1673704647125,0.32226916,20914.0,20913.0,0.306]
[1673704648265,0.32226916,20914.0,20913.0,0.006]
[1673704648522,0.32226916,20914.0,20913.0,0.306]
[1673704648715,0.32226916,20914.0,20913.0,0.98275965]
[1673704649174,0.32226916,20914.0,20913.0,0.784171]
[1673704650347,0.01128495,20914.0,20913.0,0.006]
[1673704650610,0.21010595,20914.0,20913.0,0.006]
[1673704651322,0.21010595,20914.0,20909.0,0.47824]
[1673704651557,0.19072595,20913.0,20910.0,0.62081782]
[1673704651822,0.31826209,20912.0,20910.0,0.62081782]
[1673704652011,0.31826209,20912.0,20910.0,0.478222]
[1673704653157,0.31826209,20912.0,20911.0,0.320813]
[1673704653397,0.31826209,20912.0,20911.0,0.778217]
[1673704654111,0.01128495,20914.0,20911.0,0.778217]
[1673704654344,0.34022078,20914.0,20912.0,0.86072788]
[1673704654579,0.34022078,20914.0,20913.0,1.629162]
[1673704654805,0.34022078,20914.0,20913.0,1.734513]
[1673704655514,0.01128495,20914.0,20913.0,1.734513]
[1673704655771,0.01128495,20914.0,20913.0,2.055326]
[1673704656003,0.01128495,20914.0,20913.0,2.06609364]
[1673704656543,0.01128495,20914.0,20913.0,2.06592703]
[1673704657742,0.01128495,20914.0,20913.0,2.20809812]
[1673704657982,0.01128495,20914.0,20913.0,2.06592703]
[1673704658457,0.01128495,20914.0,20913.0,2.20809812]
[1673704658934,0.01128495,20914.0,20913.0,1.74511403]
[1673704659419,0.01128495,20914.0,20913.0,1.88728512]
[1673704660617,0.01128495,20914.0,20913.0,1.74511403]
[1673704660881,0.01128495,20914.0,20913.0,2.20809812]
[1673704661614,0.01128495,20914.0,20913.0,1.88728512]
[1673704661846,0.01128495,20914.0,20913.0,2.20809812]
[1673704662806,0.01128495,20914.0,20913.0,1.88728512]
[1673704663269,0.01128495,20914.0,20913.0,2.13554526]
[1673704663500,0.01128495,20914.0,20913.0,2.45635826]
[1673704664499,0.01128495,20914.0,20913.0,2.71236767]
[1673704664927,0.01128495,20914.0,20913.0,2.85464019]
[1673704665169,0.01128495,20914.0,20913.0,2.64128212]
[1673704665438,0.00896482,20914.0,20913.0,3.28153206]
[1673704665696,0.01191637,20915.0,20914.0,0.1]
[1673704665973,0.01191637,20915.0,20914.0,1.74368562]
[1673704666731,0.01191637,20915.0,20914.0,2.3734536]
[1673704666981,0.01191637,20915.0,20914.0,3.08027749]
[1673704667208,0.01191637,20915.0,20914.0,1.69677838]
[1673704667454,0.01191637,20915.0,20914.0,1.95838254]
[1673704667698,0.01191637,20915.0,20914.0,1.69677838]
[1673704667947,0.01191637,20915.0,20914.0,2.64837991]
[1673704668193,0.01191637,20915.0,20914.0,2.80191207]
[1673704668450,0.01191637,20916.0,20915.0,0.1]
[1673704668714,0.01191637,20916.0,20915.0,1.09229462]
[1673704668984,0.01191637,20916.0,20915.0,2.34854462]
[1673704669232,0.01191637,20916.0,20915.0,2.34878145]
[1673704669454,0.01191637,20916.0,20915.0,2.7031684]
[1673704669975,0.01191637,20916.0,20915.0,2.34878145]
[1673704670230,0.01191637,20916.0,20915.0,2.48778145]
[1673704670466,0.01191637,20916.0,20915.0,2.34878145]
[1673704670721,0.01191637,20916.0,20915.0,1.96546933]
[1673704671225,0.56773024,20917.0,20915.0,1.96546933]
[1673704671475,0.56773024,20917.0,20916.0,1.62027153]
[1673704671719,0.01358607,20921.0,20917.0,0.1]
[1673704671969,0.01358607,20921.0,20920.0,0.14168547]
[1673704672228,0.01358607,20921.0,20920.0,2.72206022]
[1673704672490,0.01358607,20921.0,20920.0,2.59227983]
[1673704672741,0.01358607,20921.0,20920.0,2.70587983]
[1673704673009,0.01358607,20921.0,20920.0,2.98952325]
[1673704673289,0.01358607,20921.0,20920.0,3.01330693]
[1673704673572,0.01389254,20923.0,20921.0,0.1]
[1673704673813,0.01389254,20923.0,20922.0,2.38845068]
[1673704674327,0.01389254,20923.0,20922.0,2.87725646]
[1673704674570,0.01389254,20923.0,20922.0,2.83573611]
[1673704674847,0.01389254,20923.0,20922.0,2.31564643]
[1673704675376,0.01389254,20923.0,20922.0,2.32364643]
[1673704675588,0.01389254,20923.0,20922.0,2.60234958]
[1673704676085,0.01389254,20923.0,20922.0,2.32364643]
[1673704676328,0.01389254,20923.0,20922.0,2.32388318]
[1673704676788,1.63284236,20928.0,20923.0,0.1]
[1673704676789,1.62985529,20928.0,20923.0,0.1]
[1673704677060,1.62985529,20928.0,20924.0,1.75801739]
[1673704677061,0.32566851,20927.0,20924.0,1.75801739]
[1673704677310,1.37171293,20928.0,20924.0,1.75801739]
[1673704677311,1.38648824,20928.0,20925.0,0.620611]
[1673704677523,1.38648824,20928.0,20926.0,0.955748]
[1673704677524,1.67586728,20928.0,20926.0,0.955748]
[1673704677804,1.67586728,20928.0,20927.0,0.18634104]
[1673704678070,1.64378547,20928.0,20927.0,0.96419204]
[1673704678317,1.64378547,20928.0,20927.0,0.66419204]
[1673704678561,1.38648824,20928.0,20927.0,0.66419204]
[1673704678808,1.38648824,20928.0,20927.0,0.94572922]
[1673704678809,0.01477531,20928.0,20927.0,0.94572922]
[1673704679067,0.01477531,20928.0,20927.0,1.27854222]
[1673704679342,1.4421,20932.0,20927.0,1.27854222]
[1673704679343,0.21445903,20937.0,20928.0,0.1]
[1673704679582,0.99226885,20938.0,20929.0,0.33615983]
[1673704679583,0.33300425,20933.0,20929.0,0.33615983]
[1673704679849,0.33300425,20933.0,20930.0,2.18385539]
[1673704680100,0.33300425,20933.0,20931.0,0.194211]
[1673704680347,0.33300425,20933.0,20932.0,1.276197]
[1673704680605,0.19072595,20936.0,20932.0,1.255474]
[1673704680863,0.1,20937.0,20932.0,0.12978039]
[1673704681118,0.1,20937.0,20929.0,0.00365244]
[1673704681119,0.1146,20934.0,20929.0,0.00365244]
[1673704681408,0.20963695,20933.0,20929.0,0.05239938]
[1673704681629,0.06531,20933.0,20929.0,0.81980625]
[1673704681913,0.018911,20932.0,20930.0,0.12976233]
[1673704682160,0.018911,20931.0,20930.0,0.86778045]
[1673704682424,1.3795,20934.0,20930.0,0.86778045]
[1673704682660,1.3795,20934.0,20933.0,0.32351829]
[1673704683401,1.3795,20934.0,20932.0,0.477723]
[1673704683657,0.018911,20933.0,20932.0,0.477723]
[1673704683905,1.64256949,20934.0,20932.0,0.777723]
[1673704684158,1.64256949,20934.0,20932.0,0.477723]
[1673704684410,1.4941,20934.0,20933.0,0.001]
[1673704684666,1.513011,20934.0,20929.0,0.00365244]
[1673704684908,1.89750818,20934.0,20932.0,0.006]
[1673704685154,1.68787123,20934.0,20930.0,0.79617745]
[1673704685403,0.018911,20933.0,20932.0,0.76353367]
[1673704685662,1.68787123,20934.0,20932.0,1.05353367]
[1673704685910,1.68787123,20934.0,20932.0,0.75353367]
[1673704686170,0.018911,20933.0,20932.0,0.84533653]
[1673704686455,1.68787123,20934.0,20932.0,1.14533653]
[1673704686721,1.68787123,20934.0,20933.0,0.3]
[1673704687208,1.68787123,20934.0,20933.0,1.05777887]
[1673704687209,1.3795,20934.0,20933.0,1.05777887]
[1673704687479,1.3795,20934.0,20933.0,1.1985197]
[1673704687970,1.3795,20934.0,20933.0,0.91845483]
[1673704688229,1.3795,20934.0,20933.0,0.477714]
[1673704688724,1.3795,20934.0,20933.0,0.552714]
[1673704689223,1.3795,20934.0,20933.0,0.81197179]
[1673704689472,1.3795,20934.0,20933.0,1.11197179]
[1673704689713,1.3795,20934.0,20933.0,1.18697179]
[1673704689962,1.3795,20934.0,20933.0,0.777714]
[1673704690203,1.65791656,20934.0,20933.0,0.852714]
[1673704690458,1.65791656,20934.0,20933.0,0.777714]
[1673704690712,1.3795,20934.0,20933.0,0.852714]
[1673704690957,1.3795,20934.0,20933.0,0.777714]
[1673704691210,1.7065953,20934.0,20933.0,0.777714]
[1673704691453,1.7065953,20934.0,20933.0,0.783714]
[1673704691697,1.3795,20934.0,20933.0,0.006]
[1673704691989,1.398411,20934.0,20933.0,0.006]
[1673704692740,1.398411,20934.0,20933.0,0.001]
[1673704693003,1.398411,20934.0,20929.0,0.48144744]
[1673704693267,0.19072595,20933.0,20929.0,0.00365244]
[1673704693524,0.59611269,20932.0,20929.0,0.00365244]
[1673704693783,1.26674964,20932.0,20929.0,0.00365244]
[1673704694017,0.018911,20931.0,20929.0,0.00365244]
[1673704694266,1.05494369,20932.0,20929.0,0.00465244]
[1673704694517,0.018911,20931.0,20929.0,0.00365244]
[1673704694762,1.05494369,20932.0,20929.0,0.00365244]
[1673704694763,0.084221,20930.0,20929.0,0.00365244]
[1673704696006,0.084221,20930.0,20929.0,0.00465244]
[1673704696307,0.1,20929.0,20923.0,0.00555654]
[1673704696594,0.78265695,20928.0,20923.0,0.00555654]
[1673704696851,0.30963695,20927.0,20923.0,0.00555654]
[1673704697109,0.19072595,20926.0,20923.0,0.00555654]
[1673704697354,0.018911,20925.0,20923.0,0.10170509]
[1673704697614,0.19072595,20926.0,20923.0,0.00555654]
[1673704697857,0.1,20927.0,20923.0,0.00555654]
[1673704697858,0.018911,20925.0,20923.0,0.00555654]
[1673704698100,1.0208,20929.0,20923.0,0.72706893]
[1673704698361,2.79726849,20929.0,20924.0,0.39807768]
[1673704698616,2.79726849,20929.0,20925.0,1.08555039]
[1673704698617,0.032,20927.0,20925.0,1.08555039]
[1673704698868,2.79726849,20929.0,20925.0,1.08555039]
[1673704698869,1.77646849,20929.0,20925.0,1.25577]
[1673704699120,1.83446849,20929.0,20926.0,0.0642464]
[1673704699375,1.4506,20929.0,20927.0,0.477851]
[1673704699627,1.4506,20929.0,20928.0,0.3]
[1673704700124,1.473511,20929.0,20928.0,0.3]
[1673704700373,1.473511,20929.0,20928.0,0.777828]
[1673704700374,1.469511,20929.0,20928.0,0.777828]
[1673704700633,1.501511,20929.0,20928.0,0.93436929]
[1673704700882,1.4826,20929.0,20928.0,0.93436929]
[1673704701143,0.032,20929.0,20928.0,0.93436929]
[1673704701878,0.92583875,20932.0,20928.0,0.93336929]
[1673704702123,0.92583875,20932.0,20928.0,1.32302679]
[1673704702372,0.032,20929.0,20928.0,1.1674855]
[1673704702625,0.09731,20929.0,20928.0,0.778828]
[1673704702890,0.33281254,20929.0,20928.0,0.777828]
[1673704703135,0.33281254,20929.0,20928.0,0.478828]
[1673704703382,0.35172354,20929.0,20927.0,0.477836]
[1673704703634,0.36481254,20929.0,20928.0,0.001]
[1673704704621,0.38372354,20929.0,20928.0,0.001]
[1673704704860,0.38372354,20929.0,20928.0,0.12423408]
[1673704705105,0.29950254,20929.0,20928.0,0.001]
[1673704705598,0.28950254,20929.0,20928.0,0.001]
[1673704707102,0.28950254,20929.0,20928.0,0.301]
[1673704708142,0.28950254,20929.0,20928.0,0.001]
[1673704709143,0.30841354,20929.0,20928.0,0.001]
[1673704709389,0.28950254,20929.0,20928.0,0.001]
[1673704711672,0.032,20929.0,20928.0,0.84720143]
[1673704711940,0.032,20929.0,20928.0,1.46801443]
[1673704712694,0.032,20929.0,20928.0,1.36424215]
[1673704712943,0.032,20929.0,20928.0,1.04342915]
[1673704713929,0.032,20929.0,20928.0,1.36424215]
[1673704714176,0.032,20929.0,20928.0,1.04342915]
[1673704714424,0.09731,20929.0,20928.0,0.778828]
[1673704714673,0.032,20929.0,20928.0,0.778828]
[1673704714918,0.032,20929.0,20928.0,0.301]
[1673704715668,0.032,20929.0,20928.0,0.93743765]
[1673704715913,0.032,20929.0,20928.0,1.58286773]
[1673704717159,0.0278614,20929.0,20928.0,1.58286773]
[1673704717404,0.0278614,20929.0,20928.0,1.099641]
[1673704717652,0.0278614,20929.0,20928.0,0.778828]
[1673704718138,0.0278614,20929.0,20928.0,1.05446582]
[1673704718386,0.0278614,20929.0,20928.0,1.37527882]
[1673704718900,0.0278614,20929.0,20928.0,1.61679917]
[1673704719146,0.0278614,20929.0,20928.0,1.51679917]
[1673704720143,0.0278614,20929.0,20928.0,1.83872375]
[1673704720392,0.0278614,20929.0,20928.0,1.56308144]
[1673704720663,0.0278614,20929.0,20928.0,1.45343739]
[1673704720917,0.0278614,20929.0,20928.0,1.56426521]
[1673704721412,0.0278614,20929.0,20928.0,1.80577776]
[1673704721624,0.0278614,20929.0,20928.0,1.80477776]
[1673704721873,0.66104687,20932.0,20928.0,1.80477776]
[1673704722119,0.004,20929.0,20928.0,2.29948099]
[1673704722361,0.004,20929.0,20928.0,2.07860491]
[1673704722609,0.00241524,20929.0,20928.0,1.91028528]
[1673704722852,0.66104687,20932.0,20928.0,1.77828528]
[1673704723105,0.66504687,20932.0,20930.0,0.14145854]
[1673704723352,0.66504687,20932.0,20931.0,1.70201603]
[1673704723594,0.66504687,20932.0,20931.0,2.00201603]
[1673704723844,0.66504687,20932.0,20931.0,1.68125403]
[1673704724098,0.66104687,20932.0,20931.0,1.68125403]
[1673704724383,0.66104687,20932.0,20931.0,2.00206703]
[1673704724632,0.66304687,20932.0,20931.0,1.72125403]
[1673704725142,0.66304687,20932.0,20931.0,1.74206703]
[1673704725420,0.66304687,20932.0,20931.0,1.42125403]
[1673704725664,0.66304687,20932.0,20931.0,0.99552]
[1673704725904,0.90869915,20932.0,20931.0,0.99552]
[1673704726422,0.90869915,20932.0,20931.0,1.29552]
[1673704726676,0.90869915,20932.0,20931.0,0.81776]
[1673704727166,0.66304687,20932.0,20931.0,0.04]
[1673704727418,0.66304687,20932.0,20928.0,0.61928654]
[1673704727419,0.93898851,20932.0,20928.0,0.477828]
[1673704727671,0.29072595,20931.0,20927.0,0.14145854]
[1673704727921,0.018911,20930.0,20927.0,0.47785]
[1673704728199,0.19072595,20931.0,20927.0,0.47785]
[1673704728460,2.02804687,20932.0,20927.0,0.47785]
[1673704728668,2.21877282,20932.0,20927.0,0.9281638]
[1673704728944,0.29529441,20931.0,20927.0,1.0221638]
[1673704729190,0.018911,20930.0,20928.0,0.15474883]
[1673704729434,0.28729441,20931.0,20928.0,0.45474883]
[1673704729677,0.28729441,20931.0,20928.0,1.1706526]
[1673704729891,0.28729441,20931.0,20928.0,0.93257183]
[1673704730168,0.28229441,20931.0,20929.0,0.07779486]
[1673704730409,0.28229441,20931.0,20929.0,0.37779486]
[1673704730650,0.018911,20930.0,20929.0,0.37779486]
[1673704731152,0.37129441,20931.0,20929.0,0.38579486]
[1673704731405,0.35755508,20930.0,20929.0,0.37779486]
[1673704731668,0.44655508,20930.0,20929.0,0.08579486]
[1673704731917,0.44655508,20930.0,20929.0,0.07779486]
[1673704731918,0.35755508,20930.0,20929.0,0.07779486]
[1673704732180,0.27333408,20930.0,20929.0,0.08579486]
[1673704732426,0.27333408,20930.0,20929.0,0.07779486]
[1673704733413,0.27333408,20930.0,20929.0,0.08579486]
[1673704733414,0.36233408,20930.0,20929.0,0.08579486]
[1673704734902,0.36233408,20930.0,20929.0,0.008]
[1673704735168,0.36233408,20930.0,20929.0,0.485805]
[1673704735169,0.089,20930.0,20929.0,0.485805]
[1673704735417,0.089,20930.0,20929.0,0.785805]
[1673704737436,0.39703593,20930.0,20929.0,0.785805]
[1673704738655,0.089,20930.0,20929.0,0.785805]
[1673704739153,0.089,20930.0,20929.0,0.92726354]
[1673704739399,0.089,20930.0,20929.0,1.1798152]
[1673704739651,0.089,20930.0,20929.0,1.97073786]
[1673704739902,0.07514641,20930.0,20929.0,1.97073786]
[1673704740160,0.07514641,20930.0,20929.0,1.75855004]
[1673704740427,0.07514641,20930.0,20929.0,1.79109496]
[1673704740679,0.07514641,20930.0,20929.0,2.0059975]
[1673704740680,0.04449805,20930.0,20929.0,2.0059975]
[1673704740923,0.04449805,20930.0,20929.0,1.43688129]
[1673704741451,0.66104687,20932.0,20929.0,1.42888129]
[1673704741694,0.66104687,20932.0,20929.0,1.77751839]
[1673704741695,0.003,20930.0,20929.0,1.77751839]
[1673704741946,0.003,20930.0,20929.0,1.86736127]
[1673704742454,0.06831,20930.0,20929.0,1.38269471]
[1673704742697,0.06831,20930.0,20929.0,0.615805]
[1673704742953,0.30501449,20931.0,20929.0,0.477805]
[1673704743209,0.06831,20930.0,20929.0,0.615805]
[1673704743978,0.06531,20930.0,20929.0,0.477805]
[1673704744223,0.30801449,20931.0,20929.0,0.615805]
[1673704744474,0.29023743,20930.0,20929.0,0.477805]
[1673704744719,0.29323743,20930.0,20929.0,0.75756847]
[1673704745218,0.003,20930.0,20929.0,0.75756847]
[1673704745464,0.003,20930.0,20929.0,1.63042093]
[1673704745679,0.003,20930.0,20929.0,1.88031448]
[1673704746136,0.003,20930.0,20929.0,2.23464573]
[1673704746374,0.003,20930.0,20929.0,1.96801369]
[1673704746688,0.003,20930.0,20929.0,1.61368244]
[1673704747193,0.003,20930.0,20929.0,2.56960485]
[1673704747440,0.003,20930.0,20929.0,2.56563407]
[1673704747696,0.003,20930.0,20929.0,2.14031544]
[1673704750153,0.003,20930.0,20929.0,2.30121378]
[1673704750398,0.003,20930.0,20929.0,2.20121378]
[1673704750636,0.00178608,20930.0,20929.0,2.30121378]
[1673704751135,0.00178608,20930.0,20929.0,2.19271378]
[1673704751901,0.00178608,20930.0,20929.0,2.29271378]
[1673704752135,0.00178608,20930.0,20929.0,1.76746591]
[1673704752619,0.00178608,20930.0,20929.0,2.29271378]
[1673704752909,0.00178608,20930.0,20929.0,1.61368244]
[1673704753154,0.00178608,20930.0,20929.0,2.27756685]
[1673704753418,0.66104687,20932.0,20930.0,0.1]
[1673704753665,0.66104687,20932.0,20931.0,1.842053]
[1673704753917,0.66104687,20932.0,20931.0,2.26432413]
[1673704754923,0.66104687,20932.0,20931.0,2.53395332]
[1673704755189,0.66104687,20932.0,20931.0,2.59630079]
[1673704755440,0.66104687,20932.0,20931.0,2.26432413]
[1673704755682,0.66104687,20932.0,20931.0,2.51092289]
[1673704755940,0.66404687,20932.0,20931.0,2.64992289]
[1673704756184,0.66404687,20932.0,20931.0,2.40332413]
[1673704756435,0.66404687,20932.0,20931.0,2.828467]